bitfinex/quotes_SOLUSD_20250611
["timestamp","ask_amount","ask_price","bid_price","bid_amount"]
[1749614503454,10.13698404,166.49,166.48,2.19818158]
[1749614503666,10.13698404,166.49,166.39,100.03698404]
[1749614503667,20.27396808,166.49,166.39,100.03698404]
[1749614503961,10.13698404,166.42,166.4,18.64964886]
[1749614504142,10.13698404,166.42,166.41,2.19896499]
[1749614505236,10.13698404,166.42,166.41,2.1993758]
[1749614505435,10.13698404,166.42,166.41,2.1996158]
[1749614505745,10.13698404,166.42,166.41,28.19950126]
[1749614505946,10.13698404,166.42,166.41,28.19949947]
[1749614507655,10.13698404,166.42,166.41,28.19587091]
[1749614508046,10.13698404,166.42,166.41,2.19587091]
[1749614508669,20.27396808,166.42,166.33,89.9]
[1749614508841,1.5258,166.39,166.27,6.2576]
[1749614509200,1.5258,166.39,166.31,26.0]
[1749614509201,10.13698404,166.32,166.31,26.0]
[1749614510147,10.13698404,166.32,166.31,28.2048652]
[1749614510342,10.13698404,166.32,166.31,28.20437074]
[1749614511144,1.5258,166.39,166.31,28.20437074]
[1749614511339,1.5258,166.39,166.32,2.19644201]
[1749614511544,10.13698404,166.33,166.31,26.0]
[1749614511763,10.13698404,166.35,166.31,18.64964886]
[1749614511964,10.13698404,166.34,166.32,28.19570847]
[1749614512263,10.13698404,166.33,166.32,26.0]
[1749614512451,10.13698404,166.33,166.32,30.38083234]
[1749614512860,44.79181043,166.44,166.32,30.38083234]
[1749614512861,1.5465,166.44,166.36,26.0]
[1749614513088,10.13698404,166.38,166.36,26.0]
[1749614513390,10.13698404,166.37,166.36,26.0]
[1749614513580,10.13698404,166.4,166.36,26.0]
[1749614513785,10.13698404,166.37,166.36,26.0]
[1749614513975,10.13698404,166.37,166.36,30.37648813]
[1749614514177,10.13698404,166.37,166.36,26.0]
[1749614514988,10.13698404,166.38,166.37,26.0]
[1749614516390,10.13698404,166.39,166.37,26.0]
[1749614517089,10.13698404,166.38,166.37,26.0]
[1749614517288,10.13698404,166.42,166.38,18.79181043]
[1749614517491,7.1065,166.44,166.37,89.9]
[1749614517492,10.13698404,166.39,166.37,89.9]
[1749614521183,10.13698404,166.38,166.36,140.92]
[1749614521381,10.13698404,166.37,166.36,140.92]
[1749614521678,10.13698404,166.4,166.36,118.08355482]
[1749614521879,10.13698404,166.4,166.39,26.0]
[1749614528011,10.13698404,166.4,166.37,25.02]
[1749614528211,10.13698404,166.38,166.36,26.0]
[1749614528387,10.13698404,166.37,166.3,25.02]
[1749614528585,10.13698404,166.33,166.31,2.18705031]
[1749614528779,10.13698404,166.33,166.32,2.18705031]
[1749614529182,10.13698404,166.33,166.32,2.18822951]
[1749614529382,10.13698404,166.33,166.28,18.64964886]
[1749614529588,10.13698404,166.3,166.28,18.64964886]
[1749614529785,10.13698404,166.3,166.29,28.18889055]
[1749614530018,10.13698404,166.3,166.29,2.18889361]
[1749614530602,10.13698404,166.3,166.29,28.18889361]
[1749614530983,10.13698404,166.3,166.29,28.18853249]
[1749614531185,10.13698404,166.3,166.29,28.18859353]
[1749614531380,10.13698404,166.3,166.29,26.0]
[1749614531799,10.13698404,166.3,166.29,28.18877639]
[1749614532008,10.13698404,166.3,166.29,32.57254604]
[1749614532307,10.13698404,166.31,166.29,32.57254604]
[1749614532511,10.13698404,166.31,166.3,4.38376965]
[1749614532810,10.13698404,166.31,166.3,32.57538755]
[1749614533009,10.13698404,166.31,166.3,30.3835917]
[1749614533200,10.13698404,166.31,166.3,26.0]
[1749614533410,10.13698404,166.31,166.3,32.57648605]
[1749614534088,1.6483,166.36,166.33,26.0]
[1749614534294,10.13698404,166.35,166.33,26.0]
[1749614534597,10.13698404,166.35,166.34,28.18948545]
[1749614534806,10.13698404,166.35,166.34,32.56845768]
[1749614535009,10.13698404,166.36,166.34,32.56828375]
[1749614535213,10.13698404,166.36,166.35,2.19151462]
[1749614535516,10.13698404,166.37,166.35,6.57454184]
[1749614535711,10.13698404,166.36,166.35,26.0]
[1749614535895,10.13698404,166.36,166.35,32.57474018]
[1749614536420,10.13698404,166.36,166.35,32.57484287]
[1749614536709,1.6276,166.41,166.35,32.5744915]
[1749614536920,10.13698404,166.37,166.36,6.5744915]
[1749614537118,10.13698404,166.37,166.35,26.0]
[1749614537297,10.13698404,166.37,166.36,6.57421425]
[1749614537491,10.13698404,166.37,166.36,4.38437459]
[1749614537698,10.13698404,166.37,166.36,2.19218729]
[1749614537908,10.13698404,166.37,166.36,4.38376299]
[1749614538105,10.13698404,166.37,166.36,6.57568218]
[1749614540216,10.13698404,166.37,166.36,6.57784921]
[1749614540515,10.13698404,166.37,166.35,26.0]
[1749614540712,10.13698404,166.37,166.36,6.58333617]
[1749614540914,10.13698404,166.37,166.36,6.58327404]
[1749614541142,10.13698404,166.37,166.36,6.58293567]
[1749614542004,10.13698404,166.37,166.36,2.19431189]
[1749614542428,1.6276,166.41,166.37,26.0]
[1749614542728,10.13698404,166.4,166.38,2.19431189]
[1749614542903,10.13698404,166.42,166.39,28.19431189]
[1749614543105,5.56,166.44,166.39,26.0]
[1749614543431,5.56,166.44,166.4,2.19612282]
[1749614543734,10.13698404,166.41,166.39,26.0]
[1749614543919,10.13698404,166.41,166.4,2.19605457]
[1749614545913,10.13698404,166.41,166.38,2.1994896]
[1749614546122,10.13698404,166.39,166.38,2.1994896]
[1749614546331,10.13698404,166.39,166.37,26.0]
[1749614546530,10.13698404,166.38,166.37,26.0]
[1749614547510,10.13698404,166.39,166.37,26.0]
[1749614548219,10.13698404,166.39,166.37,115.9]
[1749614550128,10.13698404,166.38,166.37,89.9]
[1749614550536,10.13698404,166.38,166.32,89.9]
[1749614550735,10.13698404,166.34,166.33,26.0]
[1749614550944,10.13698404,166.34,166.33,115.9]
[1749614551823,10.13698404,166.34,166.33,89.9]
[1749614552017,10.13698404,166.34,166.29,25.0]
[1749614552226,10.13698404,166.32,166.31,26.0]
[1749614552824,10.13698404,166.32,166.28,108.54964886]
[1749614553030,10.13698404,166.29,166.26,89.9]
[1749614553229,10.13698404,166.29,166.28,26.0]
[1749614553444,18.79181043,166.38,166.28,26.0]
[1749614553634,10.13698404,166.3,166.29,26.0]
[1749614554336,10.13698404,166.3,166.27,25.0]
[1749614554539,10.13698404,166.31,166.27,25.0]
[1749614554739,10.13698404,166.31,166.28,26.0]
[1749614554940,10.13698404,166.3,166.29,26.0]
[1749614557024,10.13698404,166.3,166.26,69.79181043]
[1749614557230,10.13698404,166.29,166.26,69.79181043]
[1749614557730,10.13698404,166.29,166.26,43.79181043]
[1749614558139,1.5888,166.39,166.32,26.0]
[1749614558140,10.13698404,166.36,166.32,26.0]
[1749614558456,10.13698404,166.36,166.32,115.9]
[1749614558658,10.13698404,166.35,166.32,115.9]
[1749614559029,1.5888,166.39,166.32,115.9]
[1749614559228,10.13698404,166.35,166.32,115.9]
[1749614559956,1.5888,166.39,166.32,115.9]
[1749614560151,10.13698404,166.35,166.32,115.9]
[1749614561857,10.13698404,166.33,166.32,115.9]
[1749614562064,10.13698404,166.33,166.32,89.9]
[1749614563152,10.13698404,166.33,166.3,51.0]
[1749614564232,10.13698404,166.33,166.3,26.0]
[1749614564842,26.0,166.38,166.25,10.13698404]
[1749614565052,10.13698404,166.3,166.29,26.0]
[1749614567867,1.5888,166.39,166.29,44.79181043]
[1749614568051,10.13698404,166.33,166.29,44.79181043]
[1749614568253,10.13698404,166.32,166.31,26.0]
[1749614570973,10.13698404,166.32,166.26,114.9]
[1749614571274,10.13698404,166.28,166.27,26.0]
[1749614571575,10.13698404,166.28,166.26,25.0]
[1749614571880,10.13698404,166.28,166.27,26.0]
[1749614575773,10.13698404,166.28,166.24,0.14216157]
[1749614575958,10.13698404,166.28,166.27,26.0]
[1749614577260,10.13698404,166.28,166.25,26.0]
[1749614577460,10.13698404,166.26,166.25,26.0]
[1749614577675,10.13698404,166.26,166.23,25.14216157]
[1749614577879,10.13698404,166.26,166.25,26.0]
[1749614578261,10.13698404,166.26,166.23,89.9]
[1749614578574,10.13698404,166.26,166.2,18.15916631]
[1749614578575,10.13698404,166.24,166.2,25.0]
[1749614578889,10.13698404,166.21,166.15,0.66261722]
[1749614579055,6.3924,166.25,166.16,25.0]
[1749614579254,10.13698404,166.23,166.21,26.0]
[1749614580161,10.13698404,166.22,166.21,26.0]
[1749614580764,10.13698404,166.23,166.21,26.0]
[1749614581071,10.13698404,166.24,166.21,26.0]
[1749614581256,10.13698404,166.23,166.21,26.0]
[1749614582283,10.13698404,166.22,166.21,26.0]
[1749614583674,10.13698404,166.23,166.21,26.0]
[1749614584768,10.13698404,166.24,166.16,7.97691748]
[1749614584966,18.64964886,166.26,166.13,3.0620039]
[1749614584967,1.5733,166.27,166.18,18.64964886]
[1749614585177,10.13698404,166.22,166.18,44.64964886]
[1749614586062,1.5733,166.27,166.21,26.0]
[1749614586263,1.5733,166.27,166.21,36.13698404]
[1749614586479,10.13698404,166.25,166.21,36.13698404]
[1749614586653,10.13698404,166.25,166.2,25.0]
[1749614586654,1.5733,166.27,166.23,26.0]
[1749614586859,1.5733,166.27,166.2,25.0]
[1749614586860,10.13698404,166.24,166.2,26.0]
[1749614587096,10.13698404,166.22,166.21,26.0]
[1749614587265,10.13698404,166.23,166.21,26.0]
[1749614588773,1.5733,166.27,166.21,26.0]
[1749614588977,1.5733,166.27,166.22,26.0]
[1749614589179,5.54,166.29,166.26,26.0]
[1749614589393,10.13698404,166.28,166.26,26.0]
[1749614590270,15.67698404,166.29,166.26,26.0]
[1749614590670,10.13698404,166.28,166.26,26.0]
[1749614591794,5.54,166.29,166.26,26.0]
[1749614591983,10.13698404,166.28,166.26,26.0]
[1749614592513,5.54,166.29,166.28,26.0]
[1749614593282,10.13698404,166.31,166.28,26.0]
[1749614593693,10.13698404,166.31,166.28,51.0]
[1749614596188,10.13698404,166.3,166.28,51.0]
[1749614597497,10.13698404,166.31,166.28,51.0]
[1749614598495,10.13698404,166.31,166.29,28.20702484]
[1749614598688,10.13698404,166.31,166.3,2.20702484]
[1749614598894,10.13698404,166.31,166.3,2.20811276]
[1749614599092,10.13698404,166.31,166.29,26.0]
[1749614599318,1.637,166.36,166.3,2.20844157]
[1749614599477,1.637,166.36,166.26,25.0]
[1749614599677,1.637,166.36,166.27,2.20846124]
[1749614599876,18.79181043,166.35,166.28,2.20846124]
[1749614600174,44.79181043,166.35,166.25,26.0]
[1749614600400,6.506,166.32,166.26,2.21032766]
[1749614600581,10.13698404,166.27,166.21,43.64964886]
[1749614600782,10.13698404,166.25,166.22,2.21062802]
[1749614601111,10.13698404,166.25,166.24,26.0]
[1749614601401,10.13698404,166.25,166.24,28.21055261]
[1749614601786,6.506,166.32,166.24,28.21055261]
[1749614601984,10.13698404,166.27,166.25,2.21055261]
[1749614602284,10.13698404,166.27,166.26,2.21055261]
[1749614602508,10.13698404,166.27,166.25,26.0]
[1749614602800,10.13698404,166.27,166.26,2.21044001]
[1749614603007,10.13698404,166.27,166.26,2.21071]
[1749614603224,10.13698404,166.27,166.25,26.0]
[1749614603433,10.13698404,166.27,166.26,2.21152296]
[1749614604028,10.13698404,166.27,166.26,2.21192492]
[1749614604324,10.13698404,166.29,166.26,2.21188687]
[1749614604619,10.13698404,166.29,166.25,26.0]
[1749614604920,10.13698404,166.3,166.26,2.21219427]
[1749614605124,10.13698404,166.3,166.27,28.21219427]
[1749614605335,1.53,166.34,166.28,2.21219427]
[1749614605502,10.13698404,166.3,166.29,2.21219427]
[1749614605698,10.13698404,166.3,166.28,2.21219427]
[1749614605903,1.53,166.34,166.29,2.21219427]
[1749614606110,1.53,166.34,166.3,2.21219427]
[1749614606320,1.53,166.34,166.26,115.9]
[1749614606510,1.53,166.34,166.27,2.21375301]
[1749614606803,1.53,166.34,166.28,2.21375301]
[1749614607010,10.13698404,166.29,166.23,89.9]
[1749614607220,10.13698404,166.29,166.21,18.64964886]
[1749614607221,10.13698404,166.25,166.21,108.54964886]
[1749614607412,10.13698404,166.25,166.22,28.21487305]
[1749614607613,10.13698404,166.25,166.23,2.21487305]
[1749614607797,10.13698404,166.25,166.24,2.21487305]
[1749614608004,10.13698404,166.25,166.24,2.21523609]
[1749614608198,10.13698404,166.25,166.22,26.0]
[1749614608402,10.13698404,166.24,166.23,26.0]
[1749614608828,10.13698404,166.25,166.23,28.21580208]
[1749614609125,10.13698404,166.25,166.24,2.21597929]
[1749614609609,10.13698404,166.25,166.24,2.21655537]
[1749614609926,10.13698404,166.25,166.24,2.21650418]
[1749614610117,10.13698404,166.25,166.23,115.9]
[1749614610310,10.13698404,166.25,166.24,2.21649088]
[1749614611416,10.13698404,166.25,166.24,2.21653227]
[1749614611617,10.13698404,166.25,166.24,2.21651503]
[1749614611822,16.56648404,166.32,166.24,2.21651503]
[1749614612019,10.13698404,166.27,166.25,2.21639255]
[1749614612214,16.56648404,166.32,166.26,2.21639255]
[1749614612412,10.13698404,166.27,166.24,89.9]
[1749614612613,10.13698404,166.26,166.25,2.21678537]
[1749614613118,10.13698404,166.26,166.25,2.21690385]
[1749614613318,10.13698404,166.26,166.25,2.21691614]
[1749614613909,10.13698404,166.26,166.25,2.21671137]
[1749614616132,10.13698404,166.26,166.24,89.9]
[1749614616430,16.56648404,166.32,166.25,2.21747172]
[1749614616627,16.56648404,166.32,166.26,2.21747172]
[1749614616824,16.56648404,166.32,166.27,2.21747172]
[1749614617027,16.56648404,166.32,166.28,2.21747172]
[1749614617234,16.56648404,166.32,166.23,115.9]
[1749614617435,16.56648404,166.32,166.24,2.21745014]
[1749614617639,10.13698404,166.25,166.23,115.9]
[1749614617829,10.13698404,166.24,166.23,115.9]
[1749614618130,10.13698404,166.24,166.23,118.11768755]
[1749614618334,10.13698404,166.24,166.23,118.11767233]
[1749614619142,10.13698404,166.24,166.23,118.11627312]
[1749614620026,5.54,166.3,166.23,28.21627312]
[1749614620230,1.6336,166.29,166.24,2.21627312]
[1749614620422,1.6336,166.29,166.25,2.21627312]
[1749614620616,1.6336,166.29,166.2,26.0]
[1749614620848,18.79181043,166.28,166.21,2.21683062]
[1749614621029,18.79181043,166.28,166.22,2.2174322]
[1749614621229,6.5773,166.27,166.23,2.2174322]
[1749614621434,6.5773,166.27,166.24,2.21782036]
[1749614621629,6.5773,166.27,166.19,26.0]
[1749614621953,6.5773,166.27,166.2,2.21759322]
[1749614622121,6.5773,166.27,166.21,2.21759322]
[1749614622317,6.5773,166.27,166.22,2.21759322]
[1749614622550,10.13698404,166.23,166.2,18.64964886]
[1749614622917,10.13698404,166.23,166.21,2.21659454]
[1749614623241,10.13698404,166.23,166.19,115.9]
[1749614623242,10.13698404,166.22,166.19,115.9]
[1749614623426,10.13698404,166.21,166.2,28.2165808]
[1749614624648,10.13698404,166.21,166.2,26.0]
[1749614624956,10.13698404,166.21,166.2,28.21721458]
[1749614625638,10.13698404,166.21,166.2,28.2163217]
[1749614626150,10.13698404,166.21,166.2,28.21608935]
[1749614626442,10.13698404,166.21,166.2,26.0]
[1749614626656,10.13698404,166.21,166.2,28.21609849]
[1749614627743,10.13698404,166.21,166.2,2.21609849]
[1749614628138,10.13698404,166.21,166.19,26.0]
[1749614628347,1.6461,166.23,166.2,2.21579515]
[1749614628558,10.13698404,166.21,166.19,26.0]
[1749614628847,10.13698404,166.2,166.19,26.0]
[1749614629049,10.13698404,166.2,166.19,28.21606335]
[1749614630145,10.13698404,166.2,166.19,2.21617039]
[1749614630448,10.13698404,166.2,166.19,2.21644745]
[1749614630751,10.13698404,166.2,166.19,2.21650918]
[1749614631052,10.13698404,166.2,166.19,2.21665459]
[1749614631454,1.6461,166.23,166.19,2.21673939]
[1749614631747,1.6461,166.23,166.16,50.98]
[1749614631748,10.13698404,166.2,166.16,50.98]
[1749614632347,10.13698404,166.2,166.17,2.21667518]
[1749614632553,10.13698404,166.2,166.18,2.21667518]
[1749614632848,10.13698404,166.2,166.19,2.21667518]
[1749614633426,10.13698404,166.2,166.16,50.98]
[1749614633622,1.6461,166.23,166.17,2.21630625]
[1749614633827,10.13698404,166.2,166.18,2.21630625]
[1749614634147,10.13698404,166.2,166.19,2.21630625]
[1749614635447,10.13698404,166.2,166.19,2.21490765]
[1749614636236,10.13698404,166.2,166.19,2.21436417]
[1749614637856,10.13698404,166.2,166.19,2.21413936]
[1749614639431,10.13698404,166.2,166.18,89.9]
[1749614640649,10.13698404,166.19,166.16,89.9]
[1749614640838,1.6461,166.23,166.16,89.9]
[1749614641350,10.13698404,166.2,166.16,89.9]
[1749614641541,10.13698404,166.2,166.16,114.88]
[1749614642131,1.6461,166.23,166.16,114.88]
[1749614642132,10.13698404,166.19,166.18,26.0]
[1749614645556,1.6461,166.23,166.18,26.0]
[1749614645752,10.13698404,166.19,166.18,25.80413]
[1749614645956,10.13698404,166.19,166.16,89.9]
[1749614647738,1.6461,166.23,166.18,26.0]
[1749614647941,10.13698404,166.2,166.16,89.9]
[1749614648158,10.13698404,166.2,166.17,26.0]
[1749614648471,1.6461,166.23,166.17,26.0]
[1749614648675,10.13698404,166.2,166.17,26.0]
[1749614649296,10.13698404,166.19,166.18,26.0]
[1749614649853,10.13698404,166.2,166.18,26.0]
[1749614650371,10.13698404,166.19,166.18,26.0]
[1749614650700,10.13698404,166.19,166.15,0.66261722]
[1749614650979,10.13698404,166.19,166.15,26.66261722]
[1749614651151,10.13698404,166.18,166.15,26.66261722]
[1749614651355,7.1661,166.23,166.16,26.0]
[1749614651571,10.13698404,166.17,166.15,0.66261722]
[1749614651775,10.13698404,166.16,166.15,0.66261722]
[1749614651958,10.13698404,166.16,166.15,2.88455736]
[1749614652161,10.13698404,166.16,166.15,2.88458704]
[1749614652457,7.1661,166.23,166.15,28.88453853]
[1749614652671,10.13698404,166.21,166.19,26.0]
[1749614652881,10.13698404,166.21,166.2,2.22192131]
[1749614653378,10.13698404,166.21,166.2,2.22035955]
[1749614653580,0.14216157,166.18,166.05,14.78439308]
[1749614653875,10.13698404,166.14,166.08,10.13698404]
[1749614654076,10.13698404,166.11,166.07,21.14658355]
[1749614654277,10.13698404,166.08,166.07,2.49693469]
[1749614654487,10.13698404,166.16,166.07,2.49693469]
[1749614654665,10.13698404,166.12,166.07,21.14658355]
[1749614654855,10.13698404,166.11,166.07,21.14658355]
[1749614655058,10.13698404,166.16,166.1,26.0]
[1749614655281,10.13698404,166.11,166.1,26.0]
[1749614655785,10.13698404,166.16,166.1,26.0]
[1749614655981,10.13698404,166.15,166.12,26.0]
[1749614656367,10.13698404,166.14,166.12,26.0]
[1749614657780,10.13698404,166.13,166.12,26.0]
[1749614658889,13.1596,166.19,166.12,18.64964886]
[1749614659072,5.52,166.19,166.17,26.0]
[1749614659785,5.52,166.19,166.18,26.0]
[1749614660889,10.13698404,166.21,166.19,26.0]
[1749614662775,10.13698404,166.2,166.15,26.0]
[1749614662989,10.13698404,166.17,166.15,26.0]
[1749614663579,10.13698404,166.18,166.15,26.0]
[1749614663892,10.13698404,166.16,166.15,26.0]
[1749614665503,10.13698404,166.16,166.15,28.10513419]
[1749614665872,10.13698404,166.16,166.15,26.0]
[1749614666199,10.13698404,166.16,166.15,28.10449386]
[1749614666570,10.13698404,166.16,166.15,118.00449386]
[1749614666974,10.13698404,166.16,166.15,118.00431371]
[1749614667474,10.13698404,166.24,166.15,115.9]
[1749614667695,10.13698404,166.16,166.15,115.9]
[1749614667881,10.13698404,166.16,166.15,118.00406838]
[1749614668079,10.13698404,166.16,166.15,118.01030645]
[1749614668280,10.13698404,166.16,166.15,118.01050737]
[1749614669502,10.13698404,166.17,166.15,118.01050737]
[1749614669676,10.13698404,166.17,166.16,2.1107667]
[1749614671096,10.13698404,166.17,166.16,2.11160521]
[1749614671288,10.13698404,166.17,166.15,115.9]
[1749614671494,10.13698404,166.16,166.15,115.9]
[1749614671796,10.13698404,166.16,166.15,118.01183173]
[1749614672793,10.13698404,166.16,166.15,115.9]
[1749614673197,10.13698404,166.16,166.15,118.01237424]
[1749614673390,10.13698404,166.16,166.15,115.9]
[1749614673700,10.13698404,166.16,166.15,118.01206785]
[1749614674595,10.13698404,166.16,166.15,118.01252545]
[1749614676109,15.65698404,166.24,166.15,118.01252545]
[1749614676287,10.13698404,166.16,166.15,26.0]
[1749614676487,10.13698404,166.16,166.15,2.11352718]
[1749614676688,10.13698404,166.16,166.15,28.11352718]
[1749614677099,1.6277,166.19,166.15,26.0]
[1749614677299,1.6277,166.19,166.16,2.11338335]
[1749614677483,1.6277,166.19,166.15,26.0]
[1749614677484,10.13698404,166.17,166.15,26.0]
[1749614677799,10.13698404,166.16,166.15,26.0]
[1749614678001,10.13698404,166.16,166.15,28.11354575]
[1749614678186,10.13698404,166.16,166.15,28.1138637]
[1749614678394,10.13698404,166.16,166.15,28.11594854]
[1749614678783,10.13698404,166.16,166.15,26.0]
[1749614678983,10.13698404,166.16,166.15,28.11606624]
[1749614679403,10.13698404,166.16,166.15,2.11606624]
[1749614680108,10.13698404,166.16,166.15,2.1156686]
[1749614680488,10.13698404,166.16,166.15,2.11574317]
[1749614680791,10.13698404,166.16,166.14,26.0]
[1749614680985,10.13698404,166.15,166.14,26.0]
[1749614681498,10.13698404,166.15,166.14,28.11611759]
[1749614681802,10.13698404,166.15,166.14,26.0]
[1749614682103,10.13698404,166.15,166.14,2.11635751]
[1749614682310,10.13698404,166.15,166.14,2.11645022]
[1749614682490,10.13698404,166.15,166.14,2.11850548]
[1749614682691,10.13698404,166.15,166.13,26.0]
[1749614682892,10.13698404,166.14,166.13,26.0]
[1749614683106,10.13698404,166.14,166.13,28.1184012]
[1749614684107,10.13698404,166.14,166.13,28.11821601]
[1749614684312,10.13698404,166.14,166.13,26.0]
[1749614684687,10.13698404,166.14,166.13,28.11723493]
[1749614684894,10.13698404,166.14,166.13,28.11754636]
[1749614685204,10.13698404,166.17,166.15,26.0]
[1749614685711,10.13698404,166.16,166.15,26.0]
[1749614685906,10.13698404,166.16,166.15,28.11653154]
[1749614686213,10.13698404,166.16,166.15,28.11634616]
[1749614686402,10.13698404,166.17,166.15,28.11635041]
[1749614686598,10.13698404,166.17,166.16,28.11634779]
[1749614686806,10.13698404,166.17,166.16,28.1163741]
[1749614687112,10.13698404,166.17,166.16,28.11637272]
[1749614687312,10.13698404,166.17,166.16,28.11618645]
[1749614687511,10.13698404,166.17,166.16,26.0]
[1749614687813,10.13698404,166.17,166.16,28.11626145]
[1749614688018,10.13698404,166.17,166.16,28.11618806]
[1749614688221,10.13698404,166.17,166.16,26.0]
[1749614688405,10.13698404,166.17,166.16,28.11588155]
[1749614688606,10.13698404,166.17,166.16,26.0]
[1749614689817,10.13698404,166.17,166.16,28.11581253]
[1749614690229,10.13698404,166.17,166.16,118.01581253]
[1749614690429,10.13698404,166.17,166.16,115.9]
[1749614690898,10.13698404,166.17,166.16,118.01633091]
[1749614691099,1.5926,166.23,166.16,118.01633099]
[1749614691302,10.13698404,166.17,166.16,115.9]
[1749614691829,10.13698404,166.17,166.16,118.01625345]
[1749614692123,10.13698404,166.17,166.16,118.01625607]
[1749614692318,10.13698404,166.17,166.16,115.9]
[1749614692617,20.27396808,166.17,166.1,18.64964886]
[1749614692816,10.13698404,166.12,166.11,27.09049135]
[1749614693022,10.13698404,166.12,166.11,2.11096699]
[1749614693318,10.13698404,166.12,166.11,2.1108942]
[1749614693518,10.13698404,166.12,166.1,89.9]
[1749614693703,10.13698404,166.16,166.13,26.0]
[1749614693902,10.13698404,166.14,166.13,26.0]
[1749614694104,10.13698404,166.14,166.12,26.0]
[1749614694298,10.13698404,166.13,166.12,26.0]
[1749614694618,10.13698404,166.13,166.09,108.54964886]
[1749614694819,10.13698404,166.11,166.09,89.9]
[1749614695024,10.13698404,166.1,166.09,89.9]
[1749614695723,10.13698404,166.1,166.09,92.01197717]
[1749614695934,10.13698404,166.1,166.09,92.0120699]
[1749614696125,10.13698404,166.1,166.09,92.01214608]
[1749614696302,10.13698404,166.1,166.09,89.9]
[1749614696633,10.13698404,166.1,166.09,92.01184002]
[1749614696820,10.13698404,166.1,166.09,89.9]
[1749614697016,10.13698404,166.1,166.09,92.01182771]
[1749614697204,10.13698404,166.1,166.09,118.01187157]
[1749614697408,10.13698404,166.1,166.09,118.01199398]
[1749614697627,10.13698404,166.1,166.09,118.01204037]
[1749614697929,10.13698404,166.1,166.09,118.02646379]
[1749614698432,10.13698404,166.1,166.09,118.02677293]
[1749614698627,10.13698404,166.1,166.09,118.02675754]
[1749614698816,10.13698404,166.1,166.09,118.02678239]
[1749614699122,10.13698404,166.1,166.09,118.02718566]
[1749614699324,10.13698404,166.1,166.09,118.02718564]
[1749614699520,10.13698404,166.1,166.09,118.02718562]
[1749614700623,10.13698404,166.1,166.09,115.9]
[1749614700826,10.13698404,166.1,166.09,28.12519205]
[1749614701034,1.6621,166.17,166.12,26.0]
[1749614701328,10.13698404,166.14,166.13,2.12449348]
[1749614702005,8.181,166.23,166.15,26.0]
[1749614702202,8.181,166.23,166.16,28.12357942]
[1749614702430,10.13698404,166.17,166.16,26.0]
[1749614702612,10.13698404,166.17,166.16,28.12364438]
[1749614702814,10.13698404,166.17,166.16,26.0]
[1749614703132,10.13698404,166.17,166.16,28.12102649]
[1749614703632,10.13698404,166.17,166.16,26.0]
[1749614704012,10.13698404,166.17,166.16,28.12108265]
[1749614704333,10.13698404,166.17,166.16,28.12089782]
[1749614704533,10.13698404,166.17,166.16,26.0]
[1749614704734,10.13698404,166.17,166.16,28.12113311]
[1749614704948,10.13698404,166.17,166.16,28.12124941]
[1749614705309,10.13698404,166.17,166.16,26.0]
[1749614705534,10.13698404,166.17,166.16,28.12142581]
[1749614705735,10.13698404,166.17,166.16,28.12141044]
[1749614706232,10.13698404,166.17,166.16,28.12112332]
[1749614706445,10.13698404,166.17,166.16,28.12348431]
[1749614707012,8.181,166.23,166.16,118.02348431]
[1749614707013,10.13698404,166.19,166.16,118.02348431]
[1749614707340,10.13698404,166.19,166.16,115.9]
[1749614707833,10.13698404,166.19,166.17,2.12327472]
[1749614708041,8.181,166.23,166.18,2.12327472]
[1749614708220,10.13698404,166.19,166.16,115.9]
[1749614708425,10.13698404,166.18,166.16,115.9]
[1749614708630,8.181,166.23,166.16,115.9]
[1749614708935,8.181,166.23,166.17,2.12412147]
[1749614708936,10.13698404,166.19,166.17,2.12412147]
[1749614709134,10.13698404,166.19,166.18,2.12412147]
[1749614709816,10.13698404,166.19,166.17,89.9]
[1749614710020,10.13698404,166.19,166.18,2.11370985]
[1749614710344,10.13698404,166.2,166.19,26.0]
[1749614710848,10.13698404,166.2,166.19,28.11271389]
[1749614711143,10.13698404,166.2,166.19,28.11311819]
[1749614711435,10.13698404,166.2,166.19,28.11307294]
[1749614711634,10.13698404,166.2,166.19,2.11319763]
[1749614711845,10.13698404,166.2,166.19,2.11321119]
[1749614712619,10.13698404,166.2,166.15,89.9]